Cogmind - Beta 11.1 @@@ ROGUE MODE // 2022.07.22 @ 17:24:34 Player: maxwell Result: Self-destructed Performance ------------- Evolutions (8) 4000 Regions Visited (23) 4600 Robots Destroyed (149) 745 Value Destroyed (11894) 11894 Prototype IDs (31) 620 Alien Tech Used (1) 200 Bonus (12604) 12604 TOTAL SCORE: 34663 Bonus ------- Triggered Max Security 1000 High Alert Combat Kills 908 Follower Combat Kills 5193 Entered Garrisons 1800 Used RIF Installer 4500 Aligned with FarCom 300 Friendly Fire -1097 Cogmind --------- Core Integrity 968/1450 Matter 295/300 Energy 97/100 System Corruption 0% Temperature Cool (0) Movement Core (50) Location -2/Garrison Parts ------- > --- POWER (2) -------- (None) > --- PROPULSION (6) --- (None) > --- UTILITY (12) ----- (None) > --- WEAPON (3) ------- (None) > --- INVENTORY (5) ---- Experimental Coolant Injector Matter Compressor (250) Trap Scanner Relay Coupler [NC] (28) Relay Coupler [Demolisher] (22) Peak State ------------ > --- POWER ------------ Neutrino Core Light Quantum Reactor > --- PROPULSION ------- Armored Wheel Armored Wheel Armored Wheel Armored Wheel > --- UTILITY ---------- Huge Storage Unit Advanced Targeting Computer Advanced Phase Shifter Relay Coupler [NC] Relay Coupler [Swarmer] Relay Coupler [Grunt] Relay Coupler [Brawler] Relay Coupler [Duelist] Relay Coupler [Sentry] Relay Coupler [Hunter] Relay Coupler [Heavy] Relay Coupler [Behemoth] > --- WEAPON ----------- Heavy Machine Gun Heavy Machine Gun Force Lance > --- INVENTORY -------- Coolant Injector Experimental Coolant Injector Energy Well Matter Compressor Trap Scanner Advanced Phase Shifter Relay Coupler [NC] Relay Coupler [NC] Relay Coupler [NC] Relay Coupler [ARC] Relay Coupler [ARC] Relay Coupler [Swarmer] Relay Coupler [Swarmer] Relay Coupler [Grunt] Relay Coupler [Brawler] Relay Coupler [Duelist] Relay Coupler [Demolisher] Relay Coupler [Heavy] System Restoration Module Subatomic Replicator Heavy Machine Gun Heavy Machine Gun KE Penetrator Advanced Remote Datajack Advanced Remote Datajack [Rating: 99] Favorites ----------- Power Reinforced Ion Engine Engine Reinforced Ion Engine Power Core Micro Fission Core Reactor Light Antimatter Reactor Propulsion Armored Wheel Treads Light Treads Leg Aluminum Leg Wheel Armored Wheel Utility Humpback Device Coolant Injector Storage Humpback Processor Improved Targeting Computer Hackware Relay Coupler [Sentry] Protection Improved Medium Armor Plating Weapon Remote Datajack Energy Gun EM Shotgun Energy Cannon HERF Cannon Ballistic Gun Enhanced Coil Gun Launcher Proton Missile Launcher Special Weapon Remote Datajack Impact Weapon Power Maul Slashing Weapon Greatsword Piercing Weapon Force Lance Build | -11 -10 -10 -10 -9 -8 -8 -7 -7 -7 -7 -6 -6 -5 -5 -4 -4 -4 -4 -3 -3 -3 -2 -2 ------- Run | Scr Mat Min Exi Min Mat Gar Fac Gar Fac Gar Fac Gar Fac Gar Fac Gar Fac Gar Res Gar Qua Res Gar Slots Evolved 16 | . . . . . 4 . 2 . . . 2 . 2 . 2 . . . 2 . . 2 . Power 1 | . . . . . . . . . . . . . 1 . . . . . . . . . . Propulsion 4 | . . . . . 2 . . . . . . . . . 2 . . . . . . . . Utility 10 | . . . . . 1 . 2 . . . 2 . 1 . . . . . 2 . . 2 . Weapon 1 | . . . . . 1 . . . . . . . . . . . . . . . . . . Parts Attached 316 | 6 6 1 1 9 18 22 19 31 3 23 5 31 2 15 7 19 4 15 26 24 1 2 26 Power 23 | 1 1 . . 1 . 1 1 2 . 2 1 1 . 3 1 1 1 . 3 2 . . 1 Engine 9 | 1 1 . . 1 . 1 1 2 . . 1 . . 1 . . . . . . . . . Core 6 | . . . . . . . . . . 2 . 1 . 2 . . . . 1 . . . . Reactor 8 | . . . . . . . . . . . . . . . 1 1 1 . 2 2 . . 1 Propulsion 49 | 2 . . . 5 3 4 4 5 . 4 . 4 . 2 1 2 . . 3 8 . . 2 Treads 17 | 2 . . . 3 . 4 4 1 . 1 . . . . . . . . . 2 . . . Leg 1 | . . . . . . . . . . 1 . . . . . . . . . . . . . Wheel 31 | . . . . 2 3 . . 4 . 2 . 4 . 2 1 2 . . 3 6 . . 2 Hover . | . . . . . . . . . . . . . . . . . . . . . . . . Flight . | . . . . . . . . . . . . . . . . . . . . . . . . Utility 115 | 1 2 1 1 . 1 4 9 12 2 6 3 17 2 4 4 8 3 6 9 8 1 2 9 Device 34 | . 1 . . . 1 . 2 3 . 2 . 7 . 1 1 1 . 1 4 4 . 1 5 Storage 18 | 1 1 1 1 . . . 2 1 . 1 . 4 . . . 5 . 1 . . . . . Processor 7 | . . . . . . . 1 1 . . . 1 . . . 1 . 1 . . . 1 1 Hackware 47 | . . . . . . 4 4 7 2 3 3 3 2 3 1 . 3 2 4 3 . . 3 Protection 9 | . . . . . . . . . . . . 2 . . 2 1 . 1 1 1 1 . . Artifact . | . . . . . . . . . . . . . . . . . . . . . . . . Weapon 129 | 2 3 . . 3 14 13 5 12 1 11 1 9 . 6 1 8 . 9 11 6 . . 14 Energy Gun 22 | 2 3 . . 2 2 5 . . . . . 5 . . . . . . 1 1 . . 1 Energy Cannon 11 | . . . . . . . 2 2 . . . . . 2 . 3 . 2 . . . . . Ballistic Gun 35 | . . . . . 7 3 . . . 1 . . . . 1 3 . 6 4 1 . . 9 Ballistic Cannon . | . . . . . . . . . . . . . . . . . . . . . . . . Launcher 22 | . . . . 1 4 2 2 4 . 6 . . . . . . . . 1 2 . . . Special Weapon 27 | . . . . . . 2 1 5 . 2 1 3 . 2 . 2 . 1 4 1 . . 3 Impact Weapon 7 | . . . . . . 1 . 1 1 2 . 1 . 1 . . . . . . . . . Slashing Weapon 1 | . . . . . 1 . . . . . . . . . . . . . . . . . . Piercing Weapon 4 | . . . . . . . . . . . . . . 1 . . . . 1 1 . . 1 Special Melee Weapon . | . . . . . . . . . . . . . . . . . . . . . . . . Unidentified Prototypes 8 | . . . . . 3 . . . . . . . . . 1 . . . 2 . 1 1 . Corrupted Parts 12 | . . . . . . . . 5 . 6 . 1 . . . . . . . . . . . System Corruption 76 | . . . . . . . . 40 . 33 . 3 . . . . . . . . . . . Parts Lost 105 | . 2 . . . 4 6 1 5 . 26 1 11 . 2 . 2 2 6 5 6 . . 26 Power 13 | . 1 . . . . 1 . 1 . 2 . . . . . 1 1 . 2 1 . . 3 Propulsion 32 | . . . . . 2 3 1 1 . 4 1 2 . 2 . . 1 4 2 1 . . 8 Utility 27 | . . . . . . . . . . 14 . 5 . . . 1 . 1 1 . . . 5 Weapon 33 | . 1 . . . 2 2 . 3 . 6 . 4 . . . . . 1 . 4 . . 10 Highest Loss Streak 16 | . 1 . . . 3 2 1 4 . 16 1 7 . 1 . 2 2 2 3 6 . . 11 To Critical Strikes 1 | . . . . . . . . . . . . . . . . . . . . . . . 1 Average Slot Usage (%) 77 | . 92 100 87 84 84 73 89 77 84 62 69 64 85 87 87 86 92 74 68 73 100 90 69 Engine 5 | . 13 14 14 14 9 8 7 5 7 1 4 3 . 3 3 . . . . . . . . Core 2 | . . . . . . . . . . 4 1 2 5 5 5 5 5 5 4 4 4 4 2 Treads 9 | . 28 28 28 23 . 7 29 25 . 1 6 1 . . . . . . . 2 . . . Wheel 10 | . . . . 4 31 13 . . 30 15 6 11 23 20 26 26 30 10 6 5 28 26 11 Device 2 | . 7 14 2 . 9 3 5 . . . . 2 5 3 . . . 2 2 3 2 . 1 Storage 7 | . 14 14 13 14 9 9 7 7 7 6 6 5 5 5 5 6 9 5 4 4 4 4 3 Hackware 17 | . . . . . . 4 12 14 22 18 28 17 14 23 26 24 25 25 30 37 38 33 32 Protection 1 | . . . . . . . . . . . . 1 11 4 3 2 . 4 2 . 2 4 . Energy Gun 6 | . 27 28 28 23 4 3 4 . . . . 10 5 . . . . . . . . . . Energy Cannon 2 | . . . . . . . 4 9 . . . . . 10 10 4 10 5 . . . . . Ballistic Gun 3 | . . . . . 17 14 4 . . . . . . . 1 6 . 4 9 3 4 4 7 Special Weapon 3 | . . . . . . 7 6 5 15 3 4 2 5 4 3 3 5 4 1 3 4 4 1 Impact Weapon 1 | . . . . . . . . . 1 6 6 1 5 . . . . . . . . . . Naked Turns 181 | . . . . . . . . . . . . 124 . . . . . . . . . . 57 Heaviest Build 254 | 12 32 50 209 217 224 224 231 232 224 228 216 226 226 246 251 254 254 242 129 129 124 124 128 Greatest Support 104 | 40 40 40 40 40 46 80 104 104 48 48 16 48 48 48 60 80 80 68 58 72 72 72 72 Greatest Overweight (x) 72 | . . 1 5 10 10 72 2 18 4 12 13 14 4 6 4 4 3 8 7 35 1 1 5 Average Overweight (x) 5 | . . . 3 6 4 7 2 2 4 7 12 7 4 5 3 3 3 5 5 5 1 1 2 Largest Inventory Capacity 35 | 8 15 20 35 35 35 35 35 35 35 35 35 35 35 35 35 35 35 35 25 25 25 25 25 Average Capacity 31 | 7 14 19 32 35 35 35 35 35 35 34 35 31 35 35 35 35 35 26 25 25 25 25 23 Most Carried 35 | . 15 19 31 35 35 35 35 35 34 35 35 35 34 35 35 35 34 30 25 25 25 24 25 Average Carried 28 | . 8 17 26 33 26 33 32 34 31 26 23 29 30 29 32 34 33 24 22 23 24 24 21 Final Capacity 35 | 8 15 20 35 35 35 35 35 35 35 35 35 35 35 35 35 35 35 25 25 25 25 25 5 Final Carried 35 | . 15 19 31 34 35 34 35 34 34 22 35 32 34 32 35 34 30 25 25 25 24 24 5 Class Distribution -------------------- 35% | Botlord-Mutant 32% | Bothacker-Mutant 15% | Hauler-Mutant 6% | Mutant 3% | Bothacker-Skirmisher Dominant Class ---------------- Mutant | -10/Materials Mutant | -10/Mines Hauler-Mutant | -10/Exiles Hauler-Mutant | -9/Mines Hauler-Skirmisher | -8/Materials Bothacker-Mutant | -8/Garrison Bothacker-Mutant | -7/Factory Bothacker-Mutant | -7/Garrison Bothacker-Mutant | -7/Factory Bothacker-Mutant | -7/Garrison Bothacker-Mutant | -6/Factory Botlord-Mutant | -6/Garrison Botlord-Mutant | -5/Factory Botlord-Mutant | -5/Garrison Botlord-Mutant | -4/Factory Botlord-Mutant | -4/Garrison Botlord-Mutant | -4/Factory Botlord-Mutant | -4/Garrison Botlord-Mutant | -3/Research Botlord-Mutant | -3/Garrison Botlord-Mutant | -3/Quarantine Botlord-Mutant | -2/Research Botlord-Mutant | -2/Garrison Resources | -11 -10 -10 -10 -9 -8 -8 -7 -7 -7 -7 -6 -6 -5 -5 -4 -4 -4 -4 -3 -3 -3 -2 -2 ----------- Run | Scr Mat Min Exi Min Mat Gar Fac Gar Fac Gar Fac Gar Fac Gar Fac Gar Fac Gar Res Gar Qua Res Gar Matter Collected 8223 | 223 375 10 10 108 196 1107 196 890 187 671 272 756 45 225 77 388 110 245 565 881 70 . 616 Remotely . | . . . . . . . . . . . . . . . . . . . . . . . . Salvage Created 8272 | . 678 36 . 170 598 566 210 1163 63 502 150 1345 . 212 . 324 . 441 434 686 96 . 598 Parts 343 | . 38 6 . 14 52 26 9 43 2 20 . 26 . 6 . 12 . 18 36 16 3 . 16 Haulers Intercepted 5 | . 2 . . . 2 . . . 1 . . . . . . . . . . . . . . Recyclers Shooed 1 | . . 1 . . . . . . . . . . . . . . . . . . . . . Parts Field Recycled . | . . . . . . . . . . . . . . . . . . . . . . . . Retrieved Matter . | . . . . . . . . . . . . . . . . . . . . . . . . Parts Self-Destructed . | . . . . . . . . . . . . . . . . . . . . . . . . Prevented . | . . . . . . . . . . . . . . . . . . . . . . . . Kills | -11 -10 -10 -10 -9 -8 -8 -7 -7 -7 -7 -6 -6 -5 -5 -4 -4 -4 -4 -3 -3 -3 -2 -2 ------- Run | Scr Mat Min Exi Min Mat Gar Fac Gar Fac Gar Fac Gar Fac Gar Fac Gar Fac Gar Res Gar Qua Res Gar Combat Hostiles Destroyed 118 | . 12 1 . 2 13 13 9 19 . 13 . 10 . 3 . 4 . 6 6 1 1 . 5 Melee 4 | . . . . . . . . . . 2 . . . . . . . . . 1 1 . . Guns 49 | . 12 1 . . 2 9 . . . . . 9 . . . 4 . 1 6 . . . 5 Cannons 10 | . . . . . . . 1 4 . . . . . 2 . . . 3 . . . . . AOE 42 | . . . . 1 11 4 8 10 . 8 . . . . . . . . . . . . . Classes Destroyed 19 | . 7 1 . 1 2 3 1 1 . . . . . . . 1 . 1 1 . . . . Worker 3 | . 1 . . . 1 . . . . . . . . . . . . . 1 . . . . Builder 2 | . . . . 1 1 . . . . . . . . . . . . . . . . . . Tunneler 5 | . . 1 . 3 . . . . 1 . . . . . . . . . . . . . . Hauler 5 | . 2 . . . 2 . . . 1 . . . . . . . . . . . . . . Recycler 3 | . 1 . . . . . . . . . 1 . . . . . . . 1 . . . . Mechanic 4 | . 1 . . 1 1 . . . . . 1 . . . . . . . . . . . . Operator 1 | . . . . . . . . . . . . . . . . . . . 1 . . . . Watcher 5 | . 3 . . . 2 . . . . . . . . . . . . . . . . . . Swarmer 26 | . 6 1 . . 3 3 3 1 . 6 . 3 . . . . . . . . . . . Cutter 5 | . . . . . . . . . . . . . . . . . . 1 4 . . . . Grunt 60 | . 6 . . 2 7 6 4 15 . 3 . 6 . 3 . 1 . 5 . 1 . . 1 Brawler 2 | . . . . . . 1 1 . . . . . . . . . . . . . . . . Duelist 5 | . . . . . . 2 . 2 . . . 1 . . . . . . . . . . . Sentry 5 | . . . . . 1 . . . . 3 . . . . . . . . . . 1 . . Demolisher 1 | . . . . . . . . 1 . . . . . . . . . . . . . . . Specialist 3 | . . . . . 2 . . . . . . . . . . 1 . . . . . . . Hunter 9 | . . . . . . 1 . 2 . . . . . . . . . . 2 . . . 4 Programmer 4 | . . . . . . . 1 . . 1 . . . . . 1 . . 1 . . . . Behemoth 1 | . . . . . . . . . . . . . . . . 1 . . . . . . . Best Kill Streak 7 | . 7 1 . 2 6 3 5 5 2 4 1 3 . 3 . 2 . 2 4 1 1 . 2 Combat Bots Only 7 | . 7 1 . 1 5 3 5 5 . 4 . 3 . 3 . 2 . 2 4 1 1 . 2 Max Kills in Single Turn 3 | . 1 1 . 2 3 3 3 2 1 3 1 1 . 1 . 1 . 1 1 1 1 . 1 Gunslinging . | . . . . . . . . . . . . . . . . . . . . . . . . Exploded 3 | . . . . 1 3 3 3 2 . 3 . . . . . . . . . . . . . Melee 1 | . . . . . . . . . . 1 . . . . . . . . . 1 1 . . Uniques/NPCs Destroyed . | . . . . . . . . . . . . . . . . . . . . . . . . Combat | -11 -10 -10 -10 -9 -8 -8 -7 -7 -7 -7 -6 -6 -5 -5 -4 -4 -4 -4 -3 -3 -3 -2 -2 -------- Run | Scr Mat Min Exi Min Mat Gar Fac Gar Fac Gar Fac Gar Fac Gar Fac Gar Fac Gar Res Gar Qua Res Gar Damage Taken 13338 | . 378 65 . 56 648 763 454 1067 57 1485 155 938 56 630 . 578 243 751 1082 998 128 30 2776 Core 2311 | . 30 . . 21 138 145 28 105 . 271 39 217 8 51 . 57 14 133 268 304 . . 482 Absorbed by Shields 40 | . . . . . . . . 11 7 . . . 22 . . . . . . . . . . Redirected to Shielding 106 | . . . . . . . . . . . . . . . . . . . 28 31 18 . 29 Regen/Repaired (Parts) 164 | . . . . . . . . . . 84 80 . . . . . . . . . . . . Core Remaining (%) 71 | 100 . . . 79 . 48 . . . 42 . 69 . 94 . . . 82 . . 56 . . Volleys Fired 838 | . 32 4 . 8 34 95 23 68 18 40 19 196 5 38 2 47 16 51 42 44 5 2 49 Largest 3 | . 2 2 . 2 3 3 2 2 1 1 1 3 1 2 1 3 1 3 3 2 1 1 3 Hottest 180 | . 90 90 . 90 91 109 138 138 5 39 5 180 5 176 5 176 5 176 118 118 10 10 93 Shots Fired 1170 | . 64 8 . 15 63 147 26 90 18 39 19 247 5 40 2 79 16 65 68 51 5 2 101 Gun 686 | . 64 8 . 14 47 103 2 . . . . 226 . . . 50 . 12 51 17 . . 92 Cannon 125 | . . . . . . . 4 48 . . . . . 22 . 13 . 38 . . . . . Launcher 93 | . . . . 1 16 11 7 25 . 30 . . . . . . . . . 3 . . . Special 266 | . . . . . . 33 13 17 18 9 19 21 5 18 2 16 16 15 17 31 5 2 9 Kinetic 313 | . . . . . 35 71 1 . . . . . . . . 50 . 12 46 9 . . 89 Thermal 164 | . . . . . . 17 1 . . . . 130 . . . . . . 5 8 . . 3 Explosive 33 | . . . . 1 13 1 7 6 . 2 . . . . . . . . . 3 . . . Electromagnetic 394 | . 64 8 . 14 15 25 4 67 . 28 . 96 . 22 . 13 . 38 . . . . . Robot Hit Streak 30 | . 22 2 . 6 10 12 10 22 8 5 6 30 5 6 1 6 15 5 6 8 13 1 13 Robot Miss Streak 8 | . 4 3 . 1 3 4 4 2 3 2 2 4 1 2 1 3 2 8 4 3 . 1 3 Penetration Max 1 | . . . . . . . . . . . . . . . . . . . 1 . . . 1 Secondary Targets 6 | . 2 . . . . 1 . . . . . . . . . 1 . . . . . . 2 Max Gunslinging Chain 1 | . 1 . . . . 1 . . . . . . . . . 1 . . . . . . 1 Shots Hit Robots 739 | . 51 5 . 12 39 81 13 49 13 27 15 168 3 19 1 31 15 24 36 58 6 1 72 Core Hits 333 | . 36 3 . 8 53 26 14 36 . 22 . 58 . 3 . 5 . 9 16 13 1 . 30 Critical Kills 5 | . . . . . . . . . . . . . . . . . . . 5 . . . . Critical Parts Destroyed 5 | . . . . . . . . . . 2 . . . . . 1 . . 1 . . . 1 Critical Strikes 22 | . . . . . . 3 . . . 2 . 5 . . . 1 . . 6 3 1 . 1 Burn 7 | . . . . . . 2 . . . . . 5 . . . . . . . . . . . Destroy 8 | . . . . . . . . . . . . . . . . 1 . . 6 . . . 1 Corrupt 1 | . . . . . . 1 . . . . . . . . . . . . . . . . . Smash 2 | . . . . . . . . . . 2 . . . . . . . . . . . . . Impale 4 | . . . . . . . . . . . . . . . . . . . . 3 1 . . Melee Attacks 119 | . . . . . . 1 . 1 3 33 2 9 . 9 . . . . 6 32 2 5 16 Impact 57 | . . . . . . 1 . 1 3 33 2 9 . 8 . . . . . . . . . Slashing . | . . . . . . . . . . . . . . . . . . . . . . . . Piercing 62 | . . . . . . . . . . . . . . 1 . . . . 6 32 2 5 16 Sneak Attacks 6 | . . . . . . . . . 1 2 2 . . . . . . . . . 1 . . Combat Hostiles 3 | . . . . . . . . . . 2 . . . . . . . . . . 1 . . Follow-up Attacks . | . . . . . . . . . . . . . . . . . . . . . . . . Damage Inflicted 19409 | 6 969 88 . 262 1683 1227 842 2715 127 1528 213 3160 . 195 . 547 . 620 966 2362 80 . 1819 Guns 8392 | . 804 54 . 164 423 954 20 . . . . 3160 . . . 547 . 29 966 166 . . 1105 Cannons 1750 | . . . . . . . 83 881 . . . . . 195 . . . 591 . . . . . Explosions 5676 | . 143 30 . 63 1260 273 739 1834 . 960 . . . . . . . . . 374 . . . Melee 3524 | . . . . . . . . . 127 568 213 . . . . . . . . 1822 80 . 714 Ramming 67 | 6 22 4 . 35 . . . . . . . . . . . . . . . . . . . Kinetic 3543 | . . . . . 308 590 . . . . . . . . . 547 . 29 940 63 . . 1066 Thermal 3147 | . 143 30 . . 102 253 20 78 . 11 . 2342 . . . . . . 26 103 . . 39 Explosive 3477 | . . . . 63 1006 155 739 986 . 154 . . . . . . . . . 374 . . . Electromagnetic 5651 | . 804 54 . 164 267 229 83 1651 . 795 . 818 . 195 . . . 591 . . . . . Impact 908 | . . . . . . . . . 127 568 213 . . . . . . . . . . . . Slashing . | . . . . . . . . . . . . . . . . . . . . . . . . Piercing 2616 | . . . . . . . . . . . . . . . . . . . . 1822 80 . 714 Highest Corruption 77 | . . . . . . 1 2 41 41 77 . 3 . . . . . . 1 1 . 2 2 Average Corruption 18 | . . . . . . 1 1 5 41 49 . 2 . . . . . . 1 1 . 2 1 Corruption Purged 13 | . . . . . . . . 4 . . . 6 . . . . . . . 1 . . 2 Corruption Blocked . | . . . . . . . . . . . . . . . . . . . . . . . . Effects 347 | . . . . . . 22 4 62 32 208 . 4 . . . . . . 5 5 . . 5 Message Errors 89 | . . . . . . 5 2 15 7 53 . 1 . . . . . . 2 2 . . 2 Matter Fused 101 | . . . . . . 4 1 21 12 59 . 2 . . . . . . 1 1 . . . Heat Flow Errors 41 | . . . . . . 2 . 5 6 26 . . . . . . . . 1 . . . 1 Energy Discharges 46 | . . . . . . 5 . 6 3 29 . . . . . . . . . 2 . . 1 Parts Rejected 3 | . . . . . . . . . . 2 . . . . . . . . . . . . 1 Data Loss (minor) 41 | . . . . . . 4 . 10 1 26 . . . . . . . . . . . . . Data Loss (major) 11 | . . . . . . . 1 2 1 7 . . . . . . . . . . . . . Misfires 7 | . . . . . . 1 . 3 . 1 . 1 . . . . . . 1 . . . . Alerts 3 | . . . . . . 1 . . 1 1 . . . . . . . . . . . . . Misdirections 3 | . . . . . . . . . 1 2 . . . . . . . . . . . . . Weapon Failures 2 | . . . . . . . . . . 2 . . . . . . . . . . . . . Overload Shots . | . . . . . . . . . . . . . . . . . . . . . . . . Overflow Damage 697 | . 2 . . . . 4 81 78 85 143 105 . . . . . . 29 . 111 . . 59 Projectiles 84 | . . . . . . . . 55 . . . . . . . . . 29 . . . . . Explosions 113 | . 2 . . . . 4 81 23 . 3 . . . . . . . . . . . . . Melee 500 | . . . . . . . . . 85 140 105 . . . . . . . . 111 . . 59 Knockbacks 1 | . . . . . . . . . . . 1 . . . . . . . . . . . . Impact 1 | . . . . . . . . . . . 1 . . . . . . . . . . . . Kinetic . | . . . . . . . . . . . . . . . . . . . . . . . . Secondary . | . . . . . . . . . . . . . . . . . . . . . . . . Self-Inflicted Damage 635 | . 82 37 . 6 60 96 63 85 . 184 . . . . . . . . . 22 . . . Shots 29 | . 4 1 . . 2 5 1 5 . 10 . . . . . . . . . 1 . . . Rammed 11 | 1 5 1 . 4 . . . . . . . . . . . . . . . . . . . Targets Rammed 12 | 1 5 1 . 5 . . . . . . . . . . . . . . . . . . . Kicked . | . . . . . . . . . . . . . . . . . . . . . . . . Crushed 1 | . . . . 1 . . . . . . . . . . . . . . . . . . . Highest Temperature 380 | . 120 12 . 144 60 380 87 273 214 253 . 297 . 135 . 96 . 302 171 190 . . 74 Average Temperature 74 | . 28 12 . 48 13 80 30 77 96 82 . 105 . 34 . 22 . 81 27 83 . . 20 Received Heat Transfer 2067 | . 102 . . 24 99 288 87 144 21 294 . 258 30 99 . 156 18 126 9 51 18 9 234 Effects 1 | . . . . . . . . . . . . 1 . . . . . . . . . . . Energy Bleed 1 | . . . . . . . . . . . . 1 . . . . . . . . . . . Siege Activations . | . . . . . . . . . . . . . . . . . . . . . . . . Robots Corrupted 14 | . . . . 1 . . . 7 . 2 . 1 . 1 . . . 2 . . . . . Combat Hostiles 12 | . . . . 1 . . . 5 . 2 . 1 . 1 . . . 2 . . . . . Parts Fried 32 | . 2 . . 2 . . . 7 . 6 2 5 . 2 . . . 6 . . . . . Impact Corruptions 12 | . . . . . . . . . 4 5 3 . . . . . . . . . . . . Robots Melted 2 | . . . . . . . . . . . . 2 . . . . . . . . . . . Combat Hostiles . | . . . . . . . . . . . . . . . . . . . . . . . . Parts Melted 6 | . . . . . 1 2 . . . 1 . 2 . . . . . . . . . . . Heat Transferred 6277 | . 150 50 . . 200 480 37 150 . 30 . 4921 . . . . . . 37 148 . . 74 Parts Sabotaged . | . . . . . . . . . . . . . . . . . . . . . . . . Parts Stolen . | . . . . . . . . . . . . . . . . . . . . . . . . Parts Stripped . | . . . . . . . . . . . . . . . . . . . . . . . . Power Chain Reactions 15 | . 5 1 . . 2 2 . 2 . 3 . . . . . . . . . . . . . Missiles Intercepted . | . . . . . . . . . . . . . . . . . . . . . . . . Alert | -11 -10 -10 -10 -9 -8 -8 -7 -7 -7 -7 -6 -6 -5 -5 -4 -4 -4 -4 -3 -3 -3 -2 -2 ------- Run | Scr Mat Min Exi Min Mat Gar Fac Gar Fac Gar Fac Gar Fac Gar Fac Gar Fac Gar Res Gar Qua Res Gar Peak Influence 1676 | . 323 106 . 144 293 902 488 1145 615 797 383 554 503 756 515 809 678 281 169 189 1676 1133 894 Initial 1100 | . . 82 . . 20 190 473 301 600 125 383 63 290 360 396 360 424 38 157 59 105 1100 849 Average 420 | . 147 48 . 15 56 654 266 850 204 623 189 335 418 643 443 687 489 231 73 119 1641 1111 829 Maximum Alert Level 5 | . 1 . . . 1 3 2 4 2 3 1 2 2 3 2 3 2 1 . . 5 4 3 Low Security (%) 36 | 100 56 100 . 100 91 7 38 . 77 . 68 28 . . . . 7 19 100 100 . . . Level 1 15 | . 43 . . . 8 9 21 3 5 12 31 34 24 5 47 2 1 80 . . . . . Level 2 23 | . . . . . . 33 39 28 16 38 . 36 75 61 52 50 91 . . . . . . Level 3 21 | . . . . . . 49 . 55 . 48 . . . 33 . 46 . . . . . . 100 Level 4 1 | . . . . . . . . 12 . . . . . . . . . . . . . 100 . Level 5 . | . . . . . . . . . . . . . . . . . . . . . . . . High Security . | . . . . . . . . . . . . . . . . . . . . . . . . Max Security . | . . . . . . . . . . . . . . . . . . . . . 99 . . Squads Dispatched 45 | . 2 . . 2 5 1 7 . 4 . 3 . 3 . 2 . 4 . 6 . 6 . . Investigation 10 | . . . . 1 1 . 2 . 1 . 1 . 1 . 1 . . . 2 . . . . Extermination 5 | . . . . . . . 2 . 1 . 1 . . . . . . . 1 . . . . Reinforcement 15 | . 2 . . . 2 . 3 . 1 . 1 . . . . . 3 . 3 . . . . Assault 9 | . . . . 1 . 1 . . . . . . . . 1 . . . . . 6 . . Garrison 6 | . . . . . 2 . . . 1 . . . 2 . . . 1 . . . . . . Intercept . | . . . . . . . . . . . . . . . . . . . . . . . . Searches Triggered . | . . . . . . . . . . . . . . . . . . . . . . . . Construction Impeded 2 | . . . . . . . 1 . . . . . . . . . 1 . . . . . . Haulers Reinforced 1 | . . . . . . . . . . . 1 . . . . . . . . . . . . Active Scanning Responses . | . . . . . . . . . . . . . . . . . . . . . . . . Cargo Convoy Interrupts . | . . . . . . . . . . . . . . . . . . . . . . . . Alert ID Control Effect 37 | . . . . . . . . . . . . . . . . . . 2 19 8 2 . 6 Stealth | -11 -10 -10 -10 -9 -8 -8 -7 -7 -7 -7 -6 -6 -5 -5 -4 -4 -4 -4 -3 -3 -3 -2 -2 --------- Run | Scr Mat Min Exi Min Mat Gar Fac Gar Fac Gar Fac Gar Fac Gar Fac Gar Fac Gar Res Gar Qua Res Gar Distress Signals 13 | . 3 . . . 3 . 1 . . . 2 . 1 . 1 . 1 . . . . 1 . Communications Jammed . | . . . . . . . . . . . . . . . . . . . . . . . . Distress Signals . | . . . . . . . . . . . . . . . . . . . . . . . . Times Spotted 359 | . 23 2 . 6 25 29 13 31 6 21 6 29 8 20 6 18 21 21 23 18 7 2 24 Peak Tracking Total 22 | . 4 . . 4 6 6 4 4 2 3 2 4 4 4 5 5 9 4 5 5 22 3 8 Tactical Retreats 27 | . 3 1 . . . 1 1 2 . 1 . 4 1 1 . 2 . 2 . 2 2 1 3 Traps | -11 -10 -10 -10 -9 -8 -8 -7 -7 -7 -7 -6 -6 -5 -5 -4 -4 -4 -4 -3 -3 -3 -2 -2 ------- Run | Scr Mat Min Exi Min Mat Gar Fac Gar Fac Gar Fac Gar Fac Gar Fac Gar Fac Gar Res Gar Qua Res Gar Traps Triggered 56 | . 1 . . . 1 5 1 12 . 10 . 2 . 4 . 6 . 6 . 7 . 1 . Indirectly 1 | . . . . . . . . . . 1 . . . . . . . . . . . . . Trap Hack Attempts . | . . . . . . . . . . . . . . . . . . . . . . . . Triggered . | . . . . . . . . . . . . . . . . . . . . . . . . Disarmed . | . . . . . . . . . . . . . . . . . . . . . . . . Reprogrammed . | . . . . . . . . . . . . . . . . . . . . . . . . Reused . | . . . . . . . . . . . . . . . . . . . . . . . . Traps Extracted . | . . . . . . . . . . . . . . . . . . . . . . . . Installed . | . . . . . . . . . . . . . . . . . . . . . . . . Triggered . | . . . . . . . . . . . . . . . . . . . . . . . . Most Traps Carried 3 | . . 3 3 3 3 3 . . . . . . . . . . . . . . . . . Machines | -11 -10 -10 -10 -9 -8 -8 -7 -7 -7 -7 -6 -6 -5 -5 -4 -4 -4 -4 -3 -3 -3 -2 -2 ---------- Run | Scr Mat Min Exi Min Mat Gar Fac Gar Fac Gar Fac Gar Fac Gar Fac Gar Fac Gar Res Gar Qua Res Gar Machines Disabled 43 | . . . . . . 3 4 6 . 4 . 4 . 4 . 4 1 5 1 3 2 . 2 Max in Single Turn 1 | . . . . . . 1 . 1 . 1 . 1 . 1 . 1 . 1 1 1 1 . 1 Garrison Relay 31 | . . . . . . 3 . 5 . 4 . 4 . 3 . 4 . 4 . 3 . . 1 Machines Sabotaged . | . . . . . . . . . . . . . . . . . . . . . . . . Garrisons Compromised . | . . . . . . . . . . . . . . . . . . . . . . . . Overloaded Fab Kills . | . . . . . . . . . . . . . . . . . . . . . . . . Hacking | -11 -10 -10 -10 -9 -8 -8 -7 -7 -7 -7 -6 -6 -5 -5 -4 -4 -4 -4 -3 -3 -3 -2 -2 --------- Run | Scr Mat Min Exi Min Mat Gar Fac Gar Fac Gar Fac Gar Fac Gar Fac Gar Fac Gar Res Gar Qua Res Gar Machines Accessed 28 | . 5 . 1 1 4 . 4 . 2 . 4 . 1 . 1 . 2 . 2 . . 1 . Terminals 11 | . 5 . . . 2 . 1 . 1 . 1 . . . . . 1 . . . . . . Fabricators 3 | . . . . . . . 1 . . . 1 . . . . . . . 1 . . . . Repair Stations 2 | . . . . . . . 1 . . . 1 . . . . . . . . . . . . Recycling Units . | . . . . . . . . . . . . . . . . . . . . . . . . Scanalyzers 1 | . . . . . 1 . . . . . . . . . . . . . . . . . . Garrison Access 9 | . . . . . 1 . 1 . 1 . 1 . 1 . 1 . 1 . 1 . . 1 . Total Hacks 69 | . 15 . 1 1 16 . 7 . 7 . 8 . 2 . 2 . 3 . 5 . . 2 . Successful 43 | . 7 . 1 1 11 . 5 . 4 . 6 . 2 . 2 . 1 . 2 . . 1 . Failed 25 | . 7 . . . 5 . 2 . 3 . 2 . . . . . 2 . 3 . . 1 . Catastrophic 3 | . . . . . . . . . 1 . . . . . . . . . 1 . . 1 . Database Lockouts 1 | . 1 . . . . . . . . . . . . . . . . . . . . . . Manual 50 | . 12 . 1 . 12 . 4 . 6 . 6 . 1 . 1 . 2 . 4 . . 1 . Terminals 37 | . 15 . . . 10 . 2 . 5 . 3 . . . . . 2 . . . . . . Fabricators 6 | . . . . . . . 2 . . . 2 . . . . . . . 2 . . . . Repair Stations 2 | . . . . . . . 1 . . . 1 . . . . . . . . . . . . Recycling Units . | . . . . . . . . . . . . . . . . . . . . . . . . Scanalyzers 4 | . . . . . 4 . . . . . . . . . . . . . . . . . . Garrison Access 18 | . . . . . 2 . 2 . 2 . 2 . 2 . 2 . 1 . 3 . . 2 . Terminal Hacks 10 | . 5 . 1 1 2 . . . . . 1 . . . . . . . . . . . . Robot Analysis 5 | . 4 . . . 1 . . . . . . . . . . . . . . . . . . Open Door 1 | . . . . 1 . . . . . . . . . . . . . . . . . . . Terminal Index 3 | . 1 . . . 1 . . . . . 1 . . . . . . . . . . . . EX-Prototype ID Bank 1 | . . . 1 . . . . . . . . . . . . . . . . . . . . Fabricator Hacks . | . . . . . . . . . . . . . . . . . . . . . . . . Repair Station Hacks 1 | . . . . . . . 1 . . . . . . . . . . . . . . . . Scan Component 1 | . . . . . . . 1 . . . . . . . . . . . . . . . . Recycling Unit Hacks . | . . . . . . . . . . . . . . . . . . . . . . . . Scanalyzer 4 | . . . . . 4 . . . . . . . . . . . . . . . . . . Insert Component 2 | . . . . . 2 . . . . . . . . . . . . . . . . . . Analyze 2 | . . . . . 2 . . . . . . . . . . . . . . . . . . Garrison Access Hacks 9 | . . . . . 1 . 1 . 1 . 1 . 1 . 1 . 1 . 1 . . 1 . Unlock Access 9 | . . . . . 1 . 1 . 1 . 1 . 1 . 1 . 1 . 1 . . 1 . Unauthorized Hacks 19 | . 2 . . . 4 . 3 . 3 . 4 . 1 . 1 . . . 1 . . . . Terminals 11 | . 2 . . . 3 . 2 . 2 . 2 . . . . . . . . . . . . Botnet 6 | . 1 . . . 2 . 1 . 1 . 1 . . . . . . . . . . . . Operators 5 | . 1 . . . 1 . 1 . 1 . 1 . . . . . . . . . . . . Fabricators 1 | . . . . . . . . . . . 1 . . . . . . . . . . . . Fabnet 1 | . . . . . . . . . . . 1 . . . . . . . . . . . . Repair Stations . | . . . . . . . . . . . . . . . . . . . . . . . . Recycling Units . | . . . . . . . . . . . . . . . . . . . . . . . . Scanalyzers . | . . . . . . . . . . . . . . . . . . . . . . . . Garrison Access 7 | . . . . . 1 . 1 . 1 . 1 . 1 . 1 . . . 1 . . . . Eject 7 | . . . . . 1 . 1 . 1 . 1 . 1 . 1 . . . 1 . . . . Data Cores Recovered 1 | . . . . . . . . . . . . . . . . . 1 . . . . . . Used 1 | . . . . . . . . . . . . . . . . . 1 . . . . . . Hacking Detections 22 | . 4 . . . 3 . 4 . 1 . 4 . . . 1 . 2 . 2 . . 1 . Full Trace Events 1 | . . . . . . . . . . . . . . . . . . . 1 . . . . Feedback Events . | . . . . . . . . . . . . . . . . . . . . . . . . Feedback Blocked . | . . . . . . . . . . . . . . . . . . . . . . . . Robot Schematics Acquired . | . . . . . . . . . . . . . . . . . . . . . . . . Robots Built . | . . . . . . . . . . . . . . . . . . . . . . . . Authchips . | . . . . . . . . . . . . . . . . . . . . . . . . Time . | . . . . . . . . . . . . . . . . . . . . . . . . Total Robot Build Rating . | . . . . . . . . . . . . . . . . . . . . . . . . Part Schematics Acquired 2 | . . . . . 2 . . . . . . . . . . . . . . . . . . Parts Built . | . . . . . . . . . . . . . . . . . . . . . . . . Authchips . | . . . . . . . . . . . . . . . . . . . . . . . . Time . | . . . . . . . . . . . . . . . . . . . . . . . . Total Part Build Rating . | . . . . . . . . . . . . . . . . . . . . . . . . Parts Repaired . | . . . . . . . . . . . . . . . . . . . . . . . . Time . | . . . . . . . . . . . . . . . . . . . . . . . . Parts Recycled . | . . . . . . . . . . . . . . . . . . . . . . . . Recycled Matter . | . . . . . . . . . . . . . . . . . . . . . . . . Retrieved Matter . | . . . . . . . . . . . . . . . . . . . . . . . . Retrieved Components . | . . . . . . . . . . . . . . . . . . . . . . . . Parts Scanalyzed 2 | . . . . . 2 . . . . . . . . . . . . . . . . . . Part Schematics Acquired 2 | . . . . . 2 . . . . . . . . . . . . . . . . . . Parts Damaged . | . . . . . . . . . . . . . . . . . . . . . . . . Bothacking | -11 -10 -10 -10 -9 -8 -8 -7 -7 -7 -7 -6 -6 -5 -5 -4 -4 -4 -4 -3 -3 -3 -2 -2 ------------ Run | Scr Mat Min Exi Min Mat Gar Fac Gar Fac Gar Fac Gar Fac Gar Fac Gar Fac Gar Res Gar Qua Res Gar Used RIF Installer 9 | . . . . . . 1 . 1 . 1 . 1 . 1 . 1 . 1 . 1 . . 1 Hotswap 1 | . . . . . . . . 1 . . . . . . . . . . . . . . . Threat Obfuscator 1 | . . . . . . . . . . . . 1 . . . . . . . . . . . Zone Cloak 2 | . . . . . . . . . . . . . . 1 . 1 . . . . . . . Robot Detection 1 | . . . . . . . . . . 1 . . . . . . . . . . . . . Alert ID Control 1 | . . . . . . . . . . . . . . . . . . 1 . . . . . Autooverride 2 | . . . . . . . . . . . . . . . . . . . . 1 . . 1 Robots Hacked 141 | . . . . . . 7 5 11 6 4 7 12 2 12 1 10 10 10 8 16 8 1 11 Non-combat 18 | . . . . . . . 2 1 4 . 4 . 1 . 1 . 2 . 2 . 1 . . Combat 123 | . . . . . . 7 3 10 2 4 3 12 1 12 . 10 8 10 6 16 7 1 11 Autooverrided 9 | . . . . . . . . . . . . . . . . . . . . . 3 . 6 Robot Hacks Applied 159 | . . . . . . 7 8 11 12 4 11 12 3 12 1 11 14 10 11 20 5 1 6 parse_system 12 | . . . . . . . 2 . 1 . . . . 1 . 1 2 . 1 4 . . . no_distress 5 | . . . . . . . . . 1 . 1 . 1 . . . . . 2 . . . . ignore_repairs 1 | . . . . . . . . . . . . . 1 . . . . . . . . . . find_fabricator 1 | . . . . . . . . . 1 . . . . . . . . . . . . . . drop_inventory 4 | . . . . . . . 1 . 1 . 1 . . . . . 1 . . . . . . ignore_parts 2 | . . . . . . . . . . . 2 . . . . . . . . . . . . purge_threat 9 | . . . . . . . 1 . 3 . 1 . . . . . 4 . . . . . . block_reporting 1 | . . . . . . . . . . . 1 . . . . . . . . . . . . map_route 2 | . . . . . . . . . . . . . . . 1 . . . . . 1 . . find_garrison 5 | . . . . . . . 1 . 1 . 1 . . . . . 1 . 1 . . . . scatter_targeting 2 | . . . . . . . . . . . . . . . . . . . 1 . . . 1 spike_heat 1 | . . . . . . . . . . . . . . . . . . . 1 . . . . disable_weapons 1 | . . . . . . . . . 1 . . . . . . . . . . . . . . reboot_system 2 | . . . . . . 1 . . . . . . . . . . . . . 1 . . . overwrite_iff 22 | . . . . . . 2 . 2 . 1 . . . 1 . . 2 . 5 4 2 . 3 formatsys_low 4 | . . . . . . . 1 . 2 . 1 . . . . . . . . . . . . formatsys_high 85 | . . . . . . 4 2 9 1 3 3 12 1 10 . 10 4 10 . 11 2 1 2 Relay Couplers Released 139 | . . . . . 4 13 3 19 3 13 3 15 4 12 4 14 . 16 3 10 . . 3 Ejected 24 | . . . . . 4 . 3 . 3 . 3 . 4 . 4 . . . 3 . . . . Machine Destruction 115 | . . . . . . 13 . 19 . 13 . 15 . 12 . 14 . 16 . 10 . . 3 Attached 47 | . . . . . . 4 4 7 2 3 3 3 2 3 1 . 3 2 4 3 . . 3 Fabnet Peak Effective % 3 | . . . . . . . . . . . . . 3 3 1 1 1 1 . . . . . Autooverrided 1 | . . . . . . . . . . . . . . 1 . . . . . . . . . Robots Rewired 14 | . . . . . . 11 . . . . . 3 . . . . . . . . . . . Allies Hacked 7 | . . . . . . . . . . 1 . . . . . 1 . . 1 . 4 . . Hacks Repelled . | . . . . . . . . . . . . . . . . . . . . . . . . Allies | -11 -10 -10 -10 -9 -8 -8 -7 -7 -7 -7 -6 -6 -5 -5 -4 -4 -4 -4 -3 -3 -3 -2 -2 -------- Run | Scr Mat Min Exi Min Mat Gar Fac Gar Fac Gar Fac Gar Fac Gar Fac Gar Fac Gar Res Gar Qua Res Gar Total Allies 138 | . . 3 . 1 . 17 3 11 3 4 4 15 1 12 . 10 6 10 5 15 7 1 10 Largest Group 22 | . . 3 3 4 2 8 5 8 11 10 13 22 22 20 20 21 21 15 15 7 9 1 6 Highest-Rated Group 684 | . . 40 40 71 32 129 82 250 331 311 402 684 684 589 589 676 676 579 579 313 475 64 461 Highest-Rated Ally 148 | . . 16 16 31 16 21 21 40 40 40 41 46 46 49 49 56 56 56 56 64 64 64 148 Total Orders 181 | . . . . . . 16 . 16 2 28 11 32 2 23 . 22 . 10 1 12 . . 6 STAY 99 | . . . . . . 10 . 10 1 12 4 16 1 13 . 13 . 6 1 8 . . 4 FOLLOW 75 | . . . . . . 6 . 6 1 11 5 16 1 10 . 9 . 4 . 4 . . 2 AID 7 | . . . . . . . . . . 5 2 . . . . . . . . . . . . Ally Attacks 892 | . . . . 20 11 57 39 14 17 31 36 66 70 31 31 58 126 6 106 84 31 . 58 Total Damage 25003 | . . . . 282 122 1025 1379 359 758 874 1107 1433 2124 850 423 1545 3008 187 4180 2196 1319 . 1832 Kills 157 | . . . . 5 1 10 11 5 4 9 7 6 11 6 6 7 18 3 25 10 5 . 8 Allies Corrupted 2 | . . . . . . . . 1 . . . . . . . . 1 . . . . . . Allies Melted . | . . . . . . . . . . . . . . . . . . . . . . . . Intel | -11 -10 -10 -10 -9 -8 -8 -7 -7 -7 -7 -6 -6 -5 -5 -4 -4 -4 -4 -3 -3 -3 -2 -2 ------- Run | Scr Mat Min Exi Min Mat Gar Fac Gar Fac Gar Fac Gar Fac Gar Fac Gar Fac Gar Res Gar Qua Res Gar Robot Analysis Total 5 | . 4 . . . 1 . . . . . . . . . . . . . . . . . . Derelict Logs Recovered 2 | . . 1 . 1 . . . . . . . . . . . . . . . . . . . Drone Launches . | . . . . . . . . . . . . . . . . . . . . . . . . Drone Recoveries . | . . . . . . . . . . . . . . . . . . . . . . . . Exploration | -11 -10 -10 -10 -9 -8 -8 -7 -7 -7 -7 -6 -6 -5 -5 -4 -4 -4 -4 -3 -3 -3 -2 -2 ------------- Run | Scr Mat Min Exi Min Mat Gar Fac Gar Fac Gar Fac Gar Fac Gar Fac Gar Fac Gar Res Gar Qua Res Gar Turns Passed 48077 | 62 1316 1328 1693 3789 1004 4072 1572 5463 642 3965 1641 5017 213 3270 287 2737 185 3073 986 4535 159 182 886 Spaces Moved 17887 | 35 544 545 375 808 534 1342 465 1583 394 1609 542 1742 134 1649 175 1573 110 1341 432 1248 136 139 432 Core 427 | 3 . . . . . 11 . . . . . 229 . . . . . . . 104 . . 80 Treads 4409 | 32 544 545 375 563 . 271 465 1482 . . . . . . . . . . . 132 . . . Legs . | . . . . . . . . . . . . . . . . . . . . . . . . Wheels 13051 | . . . . 245 534 1060 . 101 394 1609 542 1513 134 1649 175 1573 110 1341 432 1012 136 139 352 Hover . | . . . . . . . . . . . . . . . . . . . . . . . . Flight . | . . . . . . . . . . . . . . . . . . . . . . . . Fastest Speed 50 | 50 160 160 160 230 145 161 320 150 150 95 280 50 150 150 135 135 138 125 110 105 105 105 50 Average Speed 227 | 150 160 238 446 459 155 270 320 315 150 210 291 201 150 167 145 140 138 175 178 288 105 105 119 Slowest Speed 3650 | 160 160 240 560 560 230 3650 320 400 150 280 295 310 150 180 150 150 139 220 205 1800 105 105 165 Overloaded Moves . | . . . . . . . . . . . . . . . . . . . . . . . . Propulsion Burnouts . | . . . . . . . . . . . . . . . . . . . . . . . . Robots Hopped . | . . . . . . . . . . . . . . . . . . . . . . . . Cave-ins Triggered . | . . . . . . . . . . . . . . . . . . . . . . . . Exploration Rate (%) 51 | 5 92 98 69 100 58 79 14 79 10 97 12 99 3 82 4 97 5 93 9 83 20 4 32 Regions Visited 23 Branch Regions 4 Pre-discovered Areas . | . . . . . . . . . . . . . . . . . . . . . . . . Known Exits Taken 9 | . . . . . 1 . 1 . 1 . 1 . 1 . 1 . 1 . 1 . . 1 . Unknown Exits Taken 6 | 1 1 1 1 1 . . . . . . . . . . . . . . . . 1 . . Scrap Searched 4 | . . 3 . 1 . . . . . . . . . . . . . . . . . . . Spaces Dug 44 | . . . . . . . . 1 . 10 . 1 . 2 . . . . 4 21 . 3 2 Terrain Destroyed 303 | . 19 8 . 14 78 16 37 13 . 17 . 1 . 2 . 9 . 3 7 73 . 3 3 Melee 14 | . . . . . . . . 1 . 1 . 1 . 2 . . . . 4 . . 3 2 Projectile 25 | . . . . . . . . . . . . . . . . 9 . 3 2 10 . . 1 AOE 263 | . 19 8 . 14 78 16 37 12 . 16 . . . . . . . . . 63 . . . Terrain Rammed . | . . . . . . . . . . . . . . . . . . . . . . . . Walls Destroyed . | . . . . . . . . . . . . . . . . . . . . . . . . Machines Disabled . | . . . . . . . . . . . . . . . . . . . . . . . . Actions | -11 -10 -10 -10 -9 -8 -8 -7 -7 -7 -7 -6 -6 -5 -5 -4 -4 -4 -4 -3 -3 -3 -2 -2 --------- Run | Scr Mat Min Exi Min Mat Gar Fac Gar Fac Gar Fac Gar Fac Gar Fac Gar Fac Gar Res Gar Qua Res Gar Total 24050 | 41 923 564 398 853 653 1678 529 1960 430 2087 592 3012 144 2112 205 2040 133 2015 578 2099 147 165 692 Wait 4135 | . 315 9 . 8 38 157 3 223 9 267 6 952 . 363 11 327 2 539 57 672 . 15 162 Move 17859 | 34 543 544 374 807 533 1340 464 1581 393 1607 541 1740 133 1647 175 1571 110 1339 431 1246 135 139 432 Hop . | . . . . . . . . . . . . . . . . . . . . . . . . Pick Up 267 | . 17 4 21 7 14 14 8 16 4 29 18 44 4 8 5 12 . 12 8 17 1 . 4 Fast Attach 113 | 6 5 . 1 1 7 5 5 7 . 6 1 12 . 4 4 10 1 2 13 11 1 2 9 Attach 103 | . 1 . . 2 6 8 5 11 3 10 4 13 2 6 2 4 . 5 5 6 1 . 9 Detach 31 | . 1 . . . 3 . 3 4 . 5 . 5 . . 2 2 . 2 1 . 1 1 1 Swap 101 | . . 1 . 6 5 9 9 13 . 7 . 6 . 5 1 5 3 8 8 7 . . 8 Drop 125 | . 4 1 2 9 13 9 9 10 . 2 1 9 . 8 3 14 . 9 7 12 . 1 2 Fire 838 | . 32 4 . 8 34 95 23 68 18 40 19 196 5 38 2 47 16 51 42 44 5 2 49 Melee 119 | . . . . . . 1 . 1 3 33 2 9 . 9 . . . . 6 32 2 5 16 Ram 2 | . . . . 2 . . . . . . . . . . . . . . . . . . . Kick . | . . . . . . . . . . . . . . . . . . . . . . . . Crush 10 | 1 5 1 . 3 . . . . . . . . . . . . . . . . . . . Escape Stasis 341 | . . . . . . 40 . 26 . 80 . 25 . 24 . 48 . 48 . 50 . . . Rewire 6 | . . . . . . . . . . 1 . 1 . . . . 1 . . 2 1 . . Trap . | . . . . . . . . . . . . . . . . . . . . . . . . Miscellaneous . | . . . . . . . . . . . . . . . . . . . . . . . . Route ------- -11/Scrapyard -10/Materials (discovered 4 exits: [*Mat x3] / [*Min]) -10/Mines (discovered 3 exits: [*Mat x2] / *Exi) -10/Exiles -9/Mines (discovered 2 exits: *Mat x2) -8/Materials (discovered 3 exits: *Fac x2 / Gar) -8/Garrison (discovered 3 exits: *Fac x3) -7/Factory -7/Garrison (discovered 3 exits: *Fac x3) -7/Factory (discovered 2 exits: [*Low] / Gar) -7/Garrison (discovered 3 exits: *Fac x3) -6/Factory -6/Garrison (discovered 3 exits: *Fac x3) -5/Factory -5/Garrison (discovered 3 exits: *Fac x3) -4/Factory -4/Garrison (discovered 3 exits: *Fac x3) -4/Factory -4/Garrison (discovered 3 exits: *Res x3) -3/Research -3/Garrison (discovered 3 exits: [*Qua x3]) -3/Quarantine -2/Research -2/Garrison History --------- Turn | Location | Event 30 | -11/Scrapyard | Discovered new exit (range 13) 63 | -11/Scrapyard | Entered Materials 334 | -10/Materials | Build established: Mutant 531 | -10/Materials | Discovered new exit (range 7) 603 | -10/Materials | Discovered new exit (range 16) 801 | -10/Materials | Destroyed 7 combat bots 927 | -10/Materials | Discovered new exit (range 16) 1222 | -10/Materials | Central database locked down 1299 | -10/Materials | Discovered new exit (range 12) 1379 | -10/Materials | Entered Mines 1381 | -10/Mines | Met a Derelict bent on vengeance 1423 | -10/Mines | Discovered new exit (range 10) 1538 | -10/Mines | Assisted by bots powering up and referring to "LRC-V3" 1766 | -10/Mines | Learned Materials terminal intel 1802 | -10/Mines | Found a hidden stash of uninstalled traps 2012 | -10/Mines | Deemed a non-threat by the Exiles lab entrance 2012 | -10/Mines | Discovered new exit (range 5) 2139 | -10/Mines | Received a Rocket Launcher from a helpful Derelict 2312 | -10/Mines | Discovered new exit (range 14) 2707 | -10/Mines | Entered Exiles 2707 | -10/Exiles | Accompanied by 3 allies 2765 | -10/Exiles | Met 8R-AWN 2806 | -10/Exiles | Met EX-HEX 2916 | -10/Exiles | Met EX-DEC 3309 | -10/Exiles | Build established: Hauler-Mutant 3604 | -10/Exiles | Met EX-BIN 3682 | -10/Exiles | Aligned with FarCom system 3688 | -10/Exiles | Given EX-Vault access code 3816 | -10/Exiles | Opened EX-Vault 3867 | -10/Exiles | Found AWS/Thermal 3985 | -10/Exiles | Warned to stay clear of 0b10 Research branches 4355 | -10/Exiles | Discovered new exit (range 10) 4400 | -10/Exiles | Left Exiles lab with AWS/Thermal 4400 | -10/Exiles | Entered Mines 4400 | -9/Mines | Accompanied by 3 allies 5842 | -9/Mines | Met a Derelict testing a Signal Generator 5863 | -9/Mines | Found Signal Generator 6182 | -9/Mines | Discovered new exit (range 8) 7085 | -9/Mines | Met a Derelict shopkeep closing up shop 7414 | -9/Mines | Discovered new exit (range 10) 8189 | -9/Mines | Entered Materials 8189 | -8/Materials | Accompanied by 2 allies 8189 | -8/Materials | Evolved 4 slots: Propulsion x2, Utility x1, Weapon x1 8190 | -8/Materials | Loaded intel: 12 terminal locations 8440 | -8/Materials | Discovered new exit (range 4) 8952 | -8/Materials | Discovered new exit (range 14) 9028 | -8/Materials | Build established: Hauler-Skirmisher 9032 | -8/Materials | Garrison activated, responded to threat 9139 | -8/Materials | Lost 3 parts (2n1w) 9176 | -8/Materials | Identified exit to Garrison 9193 | -8/Materials | Entered Garrison 9222 | -8/Garrison | Triggered checkpoint 9255 | -8/Garrison | Triggered checkpoint 9328 | -8/Garrison | Build established: Hauler-Mutant 9330 | -8/Garrison | Triggered checkpoint 9886 | -8/Garrison | Garrison Relay disabled 10069 | -8/Garrison | Build established: Hauler-Skirmisher 10142 | -8/Garrison | Triggered checkpoint 10220 | -8/Garrison | Discovered new exit (range 8) 10324 | -8/Garrison | Triggered checkpoint 10433 | -8/Garrison | Discovered new exit (range 10) 10472 | -8/Garrison | Installed Relay Interface Framework 10602 | -8/Garrison | Build established: Hauler-Mutant 10622 | -8/Garrison | Triggered checkpoint 11250 | -8/Garrison | Triggered checkpoint 11294 | -8/Garrison | Garrison Relay disabled 11412 | -8/Garrison | Triggered checkpoint 11546 | -8/Garrison | Discovered new exit (range 10) 11601 | -8/Garrison | Build established: Bothacker-Mutant 12852 | -8/Garrison | Triggered checkpoint 12855 | -8/Garrison | Core integrity fell below 50% 12901 | -8/Garrison | Garrison Relay disabled 13265 | -8/Garrison | Entered Factory 13265 | -7/Factory | Accompanied by 4 allies 13265 | -7/Factory | Evolved 2 slots: Utility x2 14599 | -7/Factory | P-60 Hacker assimilated allied Trooper 4a 14798 | -7/Factory | Identified exit to Garrison 14837 | -7/Factory | Entered Garrison 15024 | -7/Garrison | Garrison Relay disabled 15235 | -7/Garrison | Triggered checkpoint 15551 | -7/Garrison | Triggered checkpoint 15576 | -7/Garrison | Discovered new exit (range 15) 16244 | -7/Garrison | Triggered checkpoint 16330 | -7/Garrison | Discovered new exit (range 15) 16779 | -7/Garrison | Garrison Relay disabled 16922 | -7/Garrison | Triggered checkpoint 17039 | -7/Garrison | Garrison Relay disabled 17458 | -7/Garrison | Triggered checkpoint 17518 | -7/Garrison | Lost 4 parts (1p1n2w) 17948 | -7/Garrison | Garrison Relay disabled 18071 | -7/Garrison | Discovered new exit (range 15) 18132 | -7/Garrison | Expanded RIF knowledge: Hotswap 19578 | -7/Garrison | Triggered checkpoint 20137 | -7/Garrison | System corruption reached 10% 20155 | -7/Garrison | System corruption reached 30% 20300 | -7/Garrison | Entered Factory 20300 | -7/Factory | Accompanied by 8 allies 20674 | -7/Factory | Discovered new exit (range 4) 20874 | -7/Factory | Garrison activated, responded to threat 20924 | -7/Factory | Identified exit to Garrison 20942 | -7/Factory | Entered Garrison 20942 | -7/Garrison | Accompanied by 10 allies 21285 | -7/Garrison | P-60 Hacker assimilated allied Fighter 4a 21355 | -7/Garrison | Triggered checkpoint 21405 | -7/Garrison | Garrison Relay disabled 21551 | -7/Garrison | Triggered checkpoint 21552 | -7/Garrison | Triggered checkpoint 21552 | -7/Garrison | Triggered checkpoint 21665 | -7/Garrison | Lost 5 parts (1p2n2w) 21799 | -7/Garrison | Discovered new exit (range 15) 21965 | -7/Garrison | Discovered new exit (range 12) 21994 | -7/Garrison | Expanded RIF knowledge: Robot Detection 22184 | -7/Garrison | Discovered new exit (range 10) 22221 | -7/Garrison | Triggered checkpoint 22357 | -7/Garrison | Garrison Relay disabled 22452 | -7/Garrison | Triggered checkpoint 22764 | -7/Garrison | Triggered checkpoint 22864 | -7/Garrison | Garrison Relay disabled 23142 | -7/Garrison | Triggered checkpoint 23192 | -7/Garrison | Lost 16 parts (13u3w) 23195 | -7/Garrison | Core integrity fell below 50% 23234 | -7/Garrison | Lost 3 parts (1p1n1w) 23332 | -7/Garrison | Garrison Relay disabled 24907 | -7/Garrison | Entered Factory 24907 | -6/Factory | Accompanied by 10 allies 24907 | -6/Factory | Evolved 2 slots: Utility x2 26513 | -6/Factory | Identified exit to Garrison 26548 | -6/Factory | Entered Garrison 26548 | -6/Garrison | Accompanied by 12 allies 26688 | -6/Garrison | Triggered checkpoint 26731 | -6/Garrison | Garrison Relay disabled 27030 | -6/Garrison | Build established: Bothacker-Skirmisher 27274 | -6/Garrison | Triggered checkpoint 28378 | -6/Garrison | Triggered checkpoint 28667 | -6/Garrison | Build established: Bothacker-Mutant 28814 | -6/Garrison | Discovered new exit (range 15) 28873 | -6/Garrison | Expanded RIF knowledge: Threat Obfuscation 29074 | -6/Garrison | Triggered checkpoint 29108 | -6/Garrison | Garrison Relay disabled 29162 | -6/Garrison | Build established: Botlord-Mutant 29530 | -6/Garrison | Discovered new exit (range 6) 29578 | -6/Garrison | Spotted B-75 Beast 29582 | -6/Garrison | Triggered checkpoint 29696 | -6/Garrison | Released all parts (8) 29727 | -6/Garrison | Lost 7 parts (1n5u1w) 29756 | -6/Garrison | Triggered checkpoint 29763 | -6/Garrison | Allies destroyed B-75 Beast 30010 | -6/Garrison | Build established: Commander-Mutant 30363 | -6/Garrison | Garrison Relay disabled 30588 | -6/Garrison | Build established: Botlord-Mutant 30590 | -6/Garrison | Discovered new exit (range 14) 30654 | -6/Garrison | Triggered checkpoint 30688 | -6/Garrison | Garrison Relay disabled 31090 | -6/Garrison | Triggered checkpoint 31565 | -6/Garrison | Entered Factory 31565 | -5/Factory | Accompanied by 22 allies 31565 | -5/Factory | Evolved 2 slots: Power x1, Utility x1 31609 | -5/Factory | Garrison activated, responded to threat 31758 | -5/Factory | Identified exit to Garrison 31778 | -5/Factory | Entered Garrison 31778 | -5/Garrison | Accompanied by 10 allies 31955 | -5/Garrison | Garrison Relay disabled 32234 | -5/Garrison | Triggered checkpoint 32858 | -5/Garrison | Triggered checkpoint 33076 | -5/Garrison | Discovered new exit (range 14) 33132 | -5/Garrison | Triggered checkpoint 33236 | -5/Garrison | Discovered new exit (range 13) 33264 | -5/Garrison | Expanded RIF knowledge: Zone Cloak 33346 | -5/Garrison | Triggered checkpoint 33408 | -5/Garrison | Discovered new exit (range 8) 33773 | -5/Garrison | Triggered checkpoint 33964 | -5/Garrison | Garrison Relay disabled 34165 | -5/Garrison | Garrison Relay disabled 35048 | -5/Garrison | Entered Factory 35048 | -4/Factory | Accompanied by 20 allies 35048 | -4/Factory | Evolved 2 slots: Propulsion x2 35298 | -4/Factory | First assault squad dispatched 35333 | -4/Factory | Identified exit to Garrison 35335 | -4/Factory | Entered Garrison 35335 | -4/Garrison | Accompanied by 16 allies 35370 | -4/Garrison | Triggered checkpoint 35384 | -4/Garrison | Garrison Relay disabled 35716 | -4/Garrison | Build established: Botlord-Skirmisher 35724 | -4/Garrison | Spotted B-86 Titan 35777 | -4/Garrison | Destroyed B-86 Titan 36109 | -4/Garrison | Triggered checkpoint 36279 | -4/Garrison | Discovered new exit (range 14) 36304 | -4/Garrison | Expanded RIF knowledge: Zone Cloak 36415 | -4/Garrison | Build established: Botlord-Mutant 36438 | -4/Garrison | Discovered new exit (range 9) 36474 | -4/Garrison | Triggered checkpoint 36518 | -4/Garrison | Triggered checkpoint 36795 | -4/Garrison | Garrison Relay disabled 37124 | -4/Garrison | Garrison Relay disabled 37427 | -4/Garrison | Triggered checkpoint 37439 | -4/Garrison | Discovered new exit (range 14) 37508 | -4/Garrison | Triggered checkpoint 37584 | -4/Garrison | Garrison Relay disabled 37958 | -4/Garrison | Triggered checkpoint 38072 | -4/Garrison | Entered Factory 38072 | -4/Factory | Accompanied by 21 allies 38184 | -4/Factory | Garrison activated, responded to threat 38240 | -4/Factory | Spotted B-86 Titan 38256 | -4/Factory | Identified exit to Garrison 38257 | -4/Factory | Entered Garrison 38257 | -4/Garrison | Accompanied by 7 allies 38264 | -4/Garrison | Expanded RIF knowledge: Alert ID Control 38368 | -4/Garrison | Triggered checkpoint 38376 | -4/Garrison | Garrison Relay disabled 38572 | -4/Garrison | Triggered checkpoint 38655 | -4/Garrison | Discovered new exit (range 13) 38697 | -4/Garrison | Triggered checkpoint 38856 | -4/Garrison | Garrison Relay disabled 38951 | -4/Garrison | Triggered checkpoint 39131 | -4/Garrison | Discovered new exit (range 8) 39280 | -4/Garrison | Triggered checkpoint 39378 | -4/Garrison | Garrison Relay disabled 39830 | -4/Garrison | Triggered checkpoint 39877 | -4/Garrison | Triggered checkpoint 40176 | -4/Garrison | Triggered checkpoint 40208 | -4/Garrison | Garrison Relay disabled 40264 | -4/Garrison | Discovered new exit (range 10) 41330 | -4/Garrison | Entered Research 41330 | -3/Research | Accompanied by 15 allies 41330 | -3/Research | Evolved 2 slots: Utility x2 41559 | -3/Research | Spotted B-86 Titan 41588 | -3/Research | Allies destroyed B-86 Titan 42214 | -3/Research | Lost 3 parts (1p2n) 42298 | -3/Research | Identified exit to Garrison 42316 | -3/Research | Entered Garrison 42382 | -3/Garrison | Triggered checkpoint 42410 | -3/Garrison | Garrison Relay disabled 42742 | -3/Garrison | Lost 6 parts (1p1n4w) 43710 | -3/Garrison | Triggered checkpoint 45619 | -3/Garrison | Discovered new exit (range 10) 45640 | -3/Garrison | Expanded RIF knowledge: Autooverride 45673 | -3/Garrison | Triggered checkpoint 45693 | -3/Garrison | Garrison Relay disabled 45855 | -3/Garrison | Discovered new exit (range 13) 45936 | -3/Garrison | Triggered checkpoint 46065 | -3/Garrison | Garrison Relay disabled 46272 | -3/Garrison | Triggered checkpoint 46272 | -3/Garrison | Triggered checkpoint 46577 | -3/Garrison | Discovered new exit (range 12) 46851 | -3/Garrison | Entered Quarantine 46851 | -3/Quarantine | Accompanied by 7 allies 46852 | -3/Quarantine | Maximum security lockdown engaged 46930 | -3/Quarantine | Found Alien Artifact 46930 | -3/Quarantine | Identified Subatomic Replicator 46996 | -3/Quarantine | Discovered new exit (range 13) 47010 | -3/Quarantine | Entered Research 47010 | -2/Research | Evolved 2 slots: Utility x2 47071 | -2/Research | Found Prototype Processor 47071 | -2/Research | Identified Exp. Signal Interpreter 47177 | -2/Research | Identified exit to Garrison 47192 | -2/Research | Entered Garrison 47192 | -2/Garrison | Accompanied by 1 ally 47198 | -2/Garrison | Expanded RIF knowledge: Autooverride 47363 | -2/Garrison | Lost 8 parts (1p4n1u2w) 47542 | -2/Garrison | Triggered checkpoint 47562 | -2/Garrison | Garrison Relay disabled 47712 | -2/Garrison | Found Unknown Device 47712 | -2/Garrison | Identified Antimissile System 47790 | -2/Garrison | Triggered checkpoint 47790 | -2/Garrison | Spotted B-90 Cyclops 47800 | -2/Garrison | Triggered checkpoint 47819 | -2/Garrison | Triggered checkpoint 47920 | -2/Garrison | Lost 11 parts (1p2n4u4w) 48016 | -2/Garrison | Released all parts (8) 48046 | -2/Garrison | Lost 6 parts (1p2n3w) 48078 | -2/Garrison | Self-destructed Last Messages --------------- 48003_ Slug penetrates G-73 Enforcer. 48003_ Hvy. Machine Gun destroyed. 48006_ Slug penetrates Wall. 48010_ Slug penetrates G-73 Enforcer. 48012_ G-73 Enforcer reactivates. 48015_ KE Penetrator destroyed. 48016_ Released Relay Coupler [Brawler]. 48016_ Released Relay Coupler [Sentry]. 48016_ Released Relay Coupler [Swarmer]. 48016_ Released Huge Storage Unit. 48016_ Released Relay Coupler [Hunter]. 48016_ Released Relay Coupler [NC]. 48016_ Released Relay Coupler [Heavy]. 48016_ Released Relay Coupler [Grunt]. 48056_ Acquired 35 matter. 48059_ Acquired Hvy. Laser. 48064_ Hvy. Laser destroyed. 48068_ G-73 Enforcer destroyed. 48078_ C-30 ARC bursts open, deploying its payload. 48078_ S-43 Plague unfolds itself. Map ----- +----------------------------------------------------+ | ??????????????????????????????????????????? #?? | | ?????????????????????????????????????????? ?? | | ??????????????????????????????????????? ?? ?? | | ??????????????????????????????????????? ?? ?? | | ?????????????????????????????????????? ?# #? | | ???????????????????????????????????##? ## ## | | ???????????????????????????????????# ? | | ???????????????????????????????????# ? | | ???????????????????????????????????# ? ?? | | ???????????????????????????????????? ? ?? | | ?????????????????????????????????????# ?# ## | | ???????????????????????############### ## "# | | ???????????????????????# !!! ==[ | | ???????????????????????# !!!!! [%=* | | ???????????????????????# !!!!! !%= | | ???????????????????????# !/#### ####??#+#?#% [#?? | | ???????????????????????# !#??????????# #?#* *%#?? | | ???????????????????????# #??????????# #?#"####?? | | ???????????????????????# #????#?????# ###!#????? | | ???????????????????????# #??? #?????# = *#????? | | ????????????????######## #### #?????# #####????? | | ????????????????# = #?????# #????????? | | ????????????????# ###### ######?????# #????????? | | ????????????????# ###??# #??# #?????# #????????? | | ????????????????# %#??# #### ####### #????????? | | ????????????????# #??# @ ; ss ss #????????? | | ????????????????# %#??# ########## ###????????? | | ????????????????# ###??# #????????# #??????????? | | ????????????????# #????# #?????####+####???????? | | ??????????####### #????# #?????#[[ !!#???????? | | ??????????#"" " #????#= [##????#[[ !!#???????? | | ??????????#" #????#= %=#???Y# #???????? | | ??????????#" #????#=![##????#!! !!!#???????? | | ??????????#########????#!%*##????#!! !!#???????? | | ???????????????????????# [ ;#????#########???????? | | ???????????????????????# ##????????????????????? | | ??????????????????????##g ########## #??????????? | | ??????????????????????# ; #??????????? | | ??????????????????????## Y ############??????????? | | ???????????????????????# Y#?????????????????????? | | ???????????????????????# [ #?????????????????????? | | ???????????????????????#=%=#?????????????????????? | | ???????????????????????#[ !#?????????????????????? | | ???????????????????????#!*[#?????????????????????? | | ???????????????????????#[ %#?????????????????????? | | ???????????????????????#!= ########??????????????? | | ???????????????????????#=%=! #""""#??????????????? | | ???????????????????????# "#??????????????? | | ???????????????????????# #""""#??????????????? | | ???????????????????????############??????????????? | +----------------------------------------------------+ Best States ------------- Heat Dissipation 84 Coolant Potential 120 Energy Generation 39 Energy Capacity 570 Matter Stores 300 Matter Capacity 300 Sight Range 16 Terrain Scan Range 16 Terrain Scan Density 210 Armor Coverage 375 Resistance: TH 15 Utility Shielding 66 Phase Shifting 15 Evasion (%) 55 Targeting Accuracy 8 Recoil Reduction 4 Particle Charging 25 Relay Coupler Types 9 Relay Coupler Value 147 Item Schematics ----------------- Humpback | -8/Materials | Scanalyzed Adv. Terrain Scan Processor | -8/Materials | Scanalyzed Robot Schematics ------------------ None Fabricated ------------ Nothing Alien Tech Used ----------------- Subatomic Replicator Achievements -------------- None Challenges ------------ None Game ------ Seed SmallSpikedCanceller Manual? 0 Play Time 02:37:30 Cumulative 255.7 hours Start 2022.07.21 @ 23:24:23 End 2022.07.22 @ 17:24:34 Sessions 3 Manual Loads 0 Difficulty Rogue Special Mode None Game No. 359 Rogue 337 Adventurer 4 Explorer 18 Win Type - Total 10 Types 8/0/0/2/0/0/0/0/0 Lore% 70 Gallery% 89 Achievement% 72 Wizard Run 0 Options --------- ASCII 0 Keyboard 1 Movement Numpad Keybinds 0 Fullscreen 1 Font 18/SmallcapsGlow Map View 76x50 Tactical HUD 1 Map Filters NONE Filters NONE Steam 1 RUN: 7cb7a669-efb3-4c22-b66d-3b1f8c942ffa